fUSD/lending_fUSD_20250930
["ID","MTS","AMOUNT","RATE_DAILY","PERIOD"]
[388501070,1759219855412,-4458.93,0.00020272,2]
[388501071,1759219855425,-4709.28,0.00020272,2]
[388501072,1759219855441,-500.0,0.00020272,2]
[388501073,1759219855451,-2776.82,0.00020272,2]
[388501074,1759219855460,-6585.57,0.00020272,2]
[388501075,1759219855471,-500.0,0.00020272,2]
[388501076,1759219855481,-500.0,0.00020272,2]
[388501077,1759219855490,-500.0,0.00020272,2]
[388501078,1759219855501,-500.0,0.00020272,2]
[388501079,1759219855512,-674.71,0.00020272,2]
[388501080,1759219855521,-1973.75,0.00020272,2]
[388501081,1759219855531,-1454.64,0.00020272,2]
[388501082,1759219855540,-6943.06,0.00020272,2]
[388501083,1759219855550,-1502.86,0.00020272,2]
[388501084,1759219855559,-8195.64,0.00020272,2]
[388501085,1759219855569,-601.55,0.00020272,2]
[388501086,1759219855578,-1126.45,0.00020272,2]
[388501087,1759219855589,-833.2,0.00020272,2]
[388501088,1759219855598,-833.2,0.00020272,2]
[388501089,1759219855608,-1001.46,0.00020272,2]
[388501090,1759219855618,-4019.49,0.00020272,2]
[388501091,1759219855628,-936.6,0.00020272,2]
[388501092,1759219855638,-500.0,0.00020272,2]
[388501093,1759219855648,-150.0,0.00020273,2]
[388501094,1759219855659,-159.99936,0.00020273,2]
[388501096,1759219855669,-159.983392,0.00020273,2]
[388501097,1759219855679,-500.0,0.00020273,2]
[388501098,1759219855689,-500.0,0.00020273,2]
[388501099,1759219855699,-500.0,0.00020273,2]
[388501100,1759219855710,-500.0,0.00020273,2]
[388501101,1759219855721,-500.0,0.00020273,2]
[388501102,1759219855732,-500.0,0.00020273,2]
[388501103,1759219855743,-500.0,0.00020273,2]
[388501104,1759219855754,-500.0,0.00020273,2]
[388501105,1759219855764,-1048.43,0.00020273,2]
[388501106,1759219855775,-500.0,0.00020273,2]
[388501107,1759219855786,-500.0,0.00020273,2]
[388501108,1759219855796,-500.0,0.00020273,2]
[388501109,1759219855807,-993.27,0.00020273,2]
[388501110,1759219855818,-615.5,0.00020273,2]
[388501111,1759219855829,-1508.63,0.00020273,2]
[388501113,1759219856482,-280.60761657,0.00020273,2]
[388501114,1759219856493,-500.0,0.00020273,2]
[388501115,1759219856504,-1380.48,0.00020273,2]
[388501116,1759219856515,-500.0,0.00020273,2]
[388501117,1759219856525,-3280.49,0.00020273,2]
[388501118,1759219856535,-930.08,0.00020273,2]
[388501119,1759219856545,-773.05,0.00020273,2]
[388501120,1759219856555,-1759.56,0.00020273,2]
[388501121,1759219856567,-326.58406602,0.00020273,2]
[388501122,1759219856592,-173.41593398,0.00020273,2]
[388501123,1759219856602,-350.8716825,0.00020273,2]
[388501124,1759219856619,-149.1283175,0.00020273,2]
[388501125,1759219856629,-500.0,0.00020273,2]
[388501126,1759219856638,-794.61,0.00020273,2]
[388501127,1759219856648,-500.0,0.00020273,2]
[388501128,1759219856657,-1340.47934615,0.00020273,2]
[388501129,1759219856669,-1423.40409149,0.00020273,2]
[388501130,1759219856681,-836.95656236,0.00020273,2]
[388501131,1759219856691,-500.0,0.00020273,2]
[388501132,1759219856700,-500.0,0.00020273,2]
[388501133,1759219856710,-500.0,0.00020273,2]
[388501134,1759219856720,-500.0,0.00020273,2]
[388501135,1759219856730,-1090.31,0.00020273,2]
[388501136,1759219856739,-526.88,0.00020273,2]
[388501137,1759219856749,-692.57,0.00020273,2]
[388501138,1759219856758,-580.61,0.00020273,2]
[388501139,1759219856768,-125.14131231,0.00020273,2]
[388501140,1759219856780,-374.85868769,0.00020273,2]
[388501141,1759219856790,-500.0,0.00020273,2]
[388501142,1759219856800,-500.0,0.00020273,2]
[388501143,1759219856809,-500.0,0.00020273,2]
[388501144,1759219856818,-575.72,0.00020273,2]
[388501145,1759219856828,-500.0,0.00020273,2]
[388501146,1759219856838,-500.0,0.00020273,2]
[388501147,1759219856848,-500.0,0.00020273,2]
[388501148,1759219856858,-528.23,0.00020273,2]
[388501149,1759219856868,-1229.37,0.00020273,2]
[388501150,1759219856877,-500.0,0.00020273,2]
[388501151,1759219856887,-500.0,0.00020273,2]
[388501152,1759219856897,-500.0,0.00020273,2]
[388501153,1759219856908,-500.0,0.00020273,2]
[388501154,1759219856918,-6303.98,0.00020273,2]
[388501155,1759219856927,-500.0,0.00020273,2]
[388501156,1759219856937,-2080.64,0.00020273,2]
[388501157,1759219856947,-500.0,0.00020273,2]
[388501158,1759219856956,-3219.02,0.00020273,2]
[388501159,1759219856966,-500.0,0.00020273,2]
[388501160,1759219856975,-390.55093042,0.00020273,2]
[388501161,1759219856985,-500.0,0.00020273,2]
[388501162,1759219856995,-359.59836615,0.00020273,2]
[388501533,1759221032449,-250.0,0.00017,2]
[388501534,1759221032459,-164.60939378,0.00017402,2]
[388501535,1759221032469,-474.52590314,0.00017996,2]
[388501536,1759221032479,-556.64004646,0.00018,2]
[388501537,1759221032665,-6234.79029675,0.00018,2]
[388501538,1759221032681,-1178.9100274,0.00018,2]
[388501540,1759221032716,-4210.52448423,0.00018,2]
[388501543,1759221032751,-228.208082,0.00018,2]
[388501544,1759221032761,-103.38947405,0.000182,2]
[388501547,1759221032773,-46.61052595,0.000182,2]
[388501548,1759221032784,-1300.0,0.00018389,2]
[388501550,1759221032793,-164.60939378,0.00018389,2]
[388501552,1759221032803,-382.60559135,0.000185,7]
[388501553,1759221032836,-334.33830891,0.000185,7]
[388501554,1759221032859,-1510.15609974,0.000185,7]
[388501555,1759221032869,-1200.0,0.00018505,2]
[388501556,1759221032879,-12475.433,0.00018506,2]
[388501557,1759221032888,-8179.94668682,0.00018517,2]
[388501558,1759221032905,-500.0,0.00018712,2]
[388501559,1759221032915,-152.0,0.00018846,3]
[388501560,1759221032924,-270.25,0.00018968,2]
[388501561,1759221032934,-300.0,0.00019,2]
[388501562,1759221032944,-1549.10602559,0.00019,2]
[388501563,1759221032954,-3579.5199656,0.00019177,2]
[388501564,1759221032964,-151.0,0.00019178,2]
[388501565,1759221032973,-500.0,0.00019178,2]
[388501566,1759221032983,-500.0,0.00019178,2]
[388501567,1759221032993,-500.0,0.00019178,2]
[388501568,1759221033002,-500.0,0.00019178,2]
[388501569,1759221033012,-500.0,0.00019178,2]
[388501570,1759221033022,-500.0,0.00019178,2]
[388501571,1759221033031,-500.0,0.00019178,2]
[388501572,1759221033041,-500.0,0.00019178,2]
[388501573,1759221033051,-171.2013385,0.00019288,7]
[388501574,1759221033060,-400.0,0.00019308,2]
[388501575,1759221033070,-150.0,0.0001938,2]
[388501576,1759221033080,-1620.13,0.00019427,2]
[388501577,1759221033093,-806.89,0.00019428,2]
[388501578,1759221033103,-806.89,0.00019428,2]
[388501579,1759221033113,-473.47,0.00019428,2]
[388501580,1759221033123,-1300.0,0.00019485,2]
[388501581,1759221033134,-1278.32,0.00019499,2]
[388501582,1759221033144,-500.0,0.00019499,2]
[388501583,1759221033153,-184120.9590937,0.000195,2]
[388501584,1759221033166,-17644.86256216,0.000195,2]
[388501585,1759221033179,-79947.13602004,0.000195,2]
[388501586,1759221033190,-28455.0,0.000195,2]
[388501592,1759221038286,-500.0,0.00019499,2]
[388501593,1759221038296,-220.17185928,0.00019499,2]
[388501594,1759221038341,-279.82814072,0.00019499,2]
[388501595,1759221038352,-289.18986444,0.00019499,2]
[388501596,1759221038364,-210.81013556,0.00019499,2]
[388501597,1759221038374,-1504.98,0.00019499,2]
[388501598,1759221038391,-6432.16850082,0.000195,2]
[388501599,1759221038454,-34629.91310583,0.000195,2]
[388501600,1759221038465,-4504.25391709,0.000195,2]
[388501601,1759221038476,-4504.25391708,0.00019544,2]
[388501602,1759221038486,-4504.25391708,0.00019589,2]
[388501603,1759221038497,-2801.06301596,0.000196,2]
[388501604,1759221038508,-2801.06301596,0.00019633,2]
[388501605,1759221038518,-4504.25391708,0.00019633,2]
[388501606,1759221038528,-2801.06301596,0.00019667,2]
[388501607,1759221038539,-4504.25391708,0.00019678,2]
[388501608,1759221038550,-1383.0,0.000197,2]
[388501609,1759221038560,-2801.06301596,0.000197,2]
[388501610,1759221038571,-4504.25391708,0.00019722,2]
[388501611,1759221038581,-156.587,0.00019726,2]
[388501612,1759221038592,-2801.06301596,0.00019733,2]
[388501613,1759221038602,-2801.06301596,0.00019767,2]
[388501614,1759221038612,-4504.25391708,0.00019767,2]
[388501615,1759221038623,-1278.32,0.00019773,2]
[388501616,1759221038634,-500.0,0.00019773,2]
[388501617,1759221038643,-500.0,0.00019773,2]
[388501618,1759221038653,-500.0,0.00019773,2]
[388501619,1759221038663,-1504.98,0.00019773,2]
[388501621,1759221038674,-171.2013385,0.00019786,7]
[388501623,1759221038684,-806.89,0.000198,2]
[388501625,1759221038695,-2801.06301596,0.000198,2]
[388501627,1759221038705,-4504.25391708,0.00019811,2]
[388501629,1759221038716,-2801.06301596,0.00019833,2]
[388501631,1759221038726,-1668.02,0.0001984,2]
[388501633,1759221038737,-4504.25391708,0.00019856,2]
[388501635,1759221038748,-2801.06301596,0.00019867,2]
[388501637,1759221038758,-204.24526274,0.00019894,2]
[388501640,1759221038769,-360.0,0.00019895,2]
[388501643,1759221038788,-5000.0,0.00019896,2]
[388501645,1759221038799,-161.50922692,0.00019896,2]
[388501647,1759221038810,-2039.85852642,0.00019898,2]
[388501649,1759221038823,-1988.17,0.00019899,2]
[388501652,1759221038834,-2076.7,0.00019899,2]
[388501654,1759221038844,-708.62,0.00019899,2]
[388501656,1759221038855,-1156.7,0.00019899,2]
[388501658,1759221038865,-552.1,0.00019899,2]
[388501660,1759221038876,-532.22,0.00019899,2]
[388501662,1759221038887,-502.0,0.00019899,2]
[388501664,1759221038897,-3025.24,0.00019899,2]
[388501666,1759221038907,-732.98,0.00019899,2]
[388501667,1759221038918,-685.57,0.00019899,2]
[388501669,1759221038928,-500.0,0.00019899,2]
[388501670,1759221038939,-787.44,0.00019899,2]
[388501671,1759221038950,-1098.35,0.00019899,2]
[388501672,1759221038961,-1644.06,0.00019899,2]
[388501673,1759221038972,-728.39,0.00019899,2]
[388501674,1759221038982,-500.0,0.00019899,2]
[388501675,1759221038993,-2025.59,0.00019899,2]
[388501676,1759221039003,-500.0,0.00019899,2]
[388501677,1759221039013,-500.0,0.00019899,2]
[388501678,1759221039023,-500.0,0.000199,7]
[388501679,1759221039033,-500.0,0.000199,7]
[388501680,1759221039044,-500.0,0.000199,7]
[388501681,1759221039054,-500.0,0.000199,7]
[388501682,1759221039065,-500.0,0.000199,7]
[388501683,1759221039076,-500.0,0.000199,7]
[388501684,1759221039086,-500.0,0.000199,7]
[388501685,1759221039101,-500.0,0.000199,7]
[388501686,1759221039112,-500.0,0.000199,7]
[388501687,1759221039122,-500.0,0.000199,7]
[388501688,1759221039133,-500.0,0.000199,7]
[388501689,1759221039144,-500.0,0.000199,7]
[388501690,1759221039155,-197.78,0.000199,7]
[388501691,1759221039166,-178.47628706,0.000199,2]
[388501692,1759221039185,-165.96516534,0.000199,2]
[388501693,1759221039197,-269675.96014687,0.000199,2]
[388501694,1759221039209,-2037.08708046,0.000199,2]
[388501695,1759221039220,-201.89474856,0.000199,2]
[388501696,1759221039231,-2801.06301596,0.000199,2]
[388501697,1759221039243,-14498.30672278,0.0001995,15]
[388501698,1759221039254,-500.0,0.00019973,2]
[388501699,1759221039265,-500.0,0.00019973,2]
[388501700,1759221039276,-500.0,0.00019973,2]
[388501701,1759221039288,-500.0,0.00019973,2]
[388501702,1759221039300,-500.0,0.00019973,2]
[388501703,1759221039312,-500.0,0.00019973,2]
[388501704,1759221039323,-159.983392,0.00019973,2]
[388501705,1759221039337,-500.0,0.00019973,2]
[388501706,1759221039349,-263.84383046,0.00019973,2]
[388501707,1759221039361,-500.0,0.00019973,2]
[388501708,1759221039372,-500.0,0.00019973,2]
[388501709,1759221039384,-500.0,0.00019973,2]
[388501710,1759221039395,-500.0,0.00019973,2]
[388501711,1759221039407,-518.39603415,0.00019973,2]
[388501712,1759221039419,-500.0,0.00019973,2]
[388501713,1759221039431,-500.0,0.00019973,2]
[388501714,1759221039441,-500.0,0.00019973,2]
[388501715,1759221039452,-322.6107,0.00019985,2]
[388501716,1759221039463,-2025.59,0.00019993,2]
[388501717,1759221039474,-500.0,0.00019993,2]
[388501718,1759221039486,-500.0,0.00019993,2]
[388501719,1759221039498,-299.33939208,0.00019993,2]
[388501720,1759221039508,-500.0,0.00019993,2]
[388501721,1759221039520,-513.17799934,0.00019993,2]
[388501722,1759221039530,-546.75468351,0.00019993,2]
[388501723,1759221039541,-500.0,0.00019994,2]
[388501724,1759221039554,-591.8,0.00019994,2]
[388501725,1759221039565,-806.16,0.00019994,2]
[388501726,1759221039576,-1669.55,0.00019994,2]
[388501727,1759221039588,-500.0,0.00019994,2]
[388501728,1759221039599,-500.0,0.00019994,2]
[388501729,1759221039611,-1197.65,0.00019994,2]
[388501730,1759221039622,-500.0,0.00019994,2]
[388501731,1759221039633,-500.0,0.00019994,2]
[388501732,1759221039644,-500.0,0.00019994,2]
[388501733,1759221039655,-500.0,0.00019994,2]
[388501734,1759221039665,-500.0,0.00019994,2]
[388501735,1759221039676,-594.4,0.00019994,2]
[388501736,1759221039686,-500.0,0.00019994,2]
[388501737,1759221039696,-1774.09,0.00019994,2]
[388501738,1759221039708,-500.0,0.00019994,2]
[388501739,1759221039718,-500.0,0.00019994,2]
[388501740,1759221039729,-1428.13,0.00019994,2]
[388501741,1759221039739,-500.0,0.00019994,2]
[388501742,1759221039750,-500.0,0.00019994,2]
[388501743,1759221039760,-500.0,0.00019994,2]
[388501744,1759221039770,-906.4,0.00019994,2]
[388501745,1759221039781,-500.0,0.00019994,2]
[388501746,1759221039791,-500.0,0.00019994,2]
[388501747,1759221039802,-891.88,0.00019994,2]
[388501748,1759221039813,-1924.03,0.00019994,2]
[388501749,1759221039823,-3595.31,0.00019994,2]
[388501750,1759221039835,-500.0,0.00019994,2]
[388501751,1759221039846,-1069.73,0.00019994,2]
[388501752,1759221039857,-625.17,0.00019994,2]
[388501753,1759221039868,-6919.07,0.00019994,2]
[388501754,1759221039879,-500.0,0.00019994,2]
[388501755,1759221039889,-1136.01,0.00019994,2]
[388501756,1759221039900,-500.0,0.00019994,2]
[388501757,1759221039911,-4406.51,0.00019994,2]
[388501758,1759221039923,-2923.89,0.00019994,2]
[388501759,1759221039934,-3261.22,0.00019994,2]
[388501760,1759221039944,-13900.09,0.00019994,2]
[388501761,1759221039955,-1618.36,0.00019994,2]
[388501762,1759221039965,-1254.6,0.00019994,2]
[388501763,1759221039976,-6632.16,0.00019994,2]
[388501764,1759221039986,-4518.05,0.00019994,2]
[388501765,1759221039996,-16416.246647,0.00019994,2]
[388501766,1759221040007,-500.0,0.00019994,2]
[388501767,1759221040017,-731.39,0.00019994,2]
[388501768,1759221040028,-500.0,0.00019994,2]
[388501769,1759221040039,-4516.61,0.00019994,2]
[388501770,1759221040049,-967.61,0.00019994,2]
[388501771,1759221040060,-2001.59,0.00019994,2]
[388501778,1759221040760,-7062.59,0.00019994,2]
[388501779,1759221040805,-4624.72,0.00019994,2]
[388501780,1759221040816,-500.0,0.00019994,2]
[388501781,1759221040825,-4937.09,0.00019994,2]
[388501782,1759221040836,-500.0,0.00019994,2]
[388501783,1759221040846,-4752.24,0.00019994,2]
[388501784,1759221040856,-2540.67,0.00019994,2]
[388501785,1759221040866,-547.97,0.00019994,2]
[388501786,1759221040877,-6382.37,0.00019994,2]
[388501787,1759221040887,-9286.83,0.00019994,2]
[388501788,1759221040897,-500.0,0.00019994,2]
[388501789,1759221040906,-236.9174881,0.00019994,2]
[388501790,1759221040916,-500.0,0.00019994,2]
[388501791,1759221040926,-158.67984353,0.00019994,2]
[388501792,1759221040937,-500.0,0.00019994,2]
[388501793,1759221040946,-381.67274326,0.00019994,2]
[388501794,1759221040957,-399.58071736,0.00019994,2]
[388501795,1759221040967,-3688.51,0.00019994,2]
[388501796,1759221040977,-593.7,0.00019994,2]
[388501797,1759221040987,-10165.92,0.00019994,2]
[388501798,1759221040996,-500.0,0.00019994,2]
[388501799,1759221041006,-525.88,0.00019994,2]
[388501800,1759221041015,-1940.99,0.00019994,2]
[388501801,1759221041025,-8804.54,0.00019994,2]
[388501802,1759221041034,-23662.9,0.00019994,2]
[388501803,1759221041044,-500.0,0.00019994,2]
[388501804,1759221041054,-2181.41,0.00019994,2]
[388501805,1759221041064,-2669.64,0.00019994,2]
[388501806,1759221041073,-4087.35,0.00019994,2]
[388501807,1759221041084,-7769.19,0.00019994,2]
[388501808,1759221041098,-724.78,0.00019994,2]
[388501809,1759221041109,-1571.54,0.00019994,2]
[388501810,1759221041119,-983.64,0.00019994,2]
[388501811,1759221041128,-1131.81,0.00019994,2]
[388501812,1759221041139,-5255.96,0.00019994,2]
[388501813,1759221041148,-500.0,0.00019994,2]
[388501814,1759221041158,-500.0,0.00019994,2]
[388501815,1759221041169,-912.02,0.00019994,2]
[388501816,1759221041179,-4316.84,0.00019994,2]
[388501817,1759221041189,-3112.9,0.00019994,2]
[388501818,1759221041199,-618.49,0.00019994,2]
[388501819,1759221041210,-3280.15,0.00019994,2]
[388501820,1759221041219,-1809.27,0.00019994,2]
[388501821,1759221041230,-1817.57,0.00019994,2]
[388501822,1759221041240,-728.8,0.00019994,2]
[388501823,1759221041250,-7760.67,0.00019994,2]
[388501824,1759221041261,-3294.99,0.00019994,2]
[388501825,1759221041270,-3346.5,0.00019994,2]
[388501826,1759221041280,-605.92,0.00019994,2]
[388501827,1759221041290,-4980.15,0.00019994,2]
[388501828,1759221041299,-6364.47,0.00019994,2]
[388501829,1759221041309,-1519.08,0.00019994,2]
[388501830,1759221041319,-2119.35,0.00019994,2]
[388501831,1759221041329,-2168.12,0.00019994,2]
[388501832,1759221041339,-11397.3,0.00019994,2]
[388501833,1759221041349,-4762.29,0.00019994,2]
[388501834,1759221041359,-1333.42,0.00019994,2]
[388501835,1759221041368,-500.0,0.00019994,2]
[388501836,1759221041378,-229.81761342,0.00019994,2]
[388501837,1759221041388,-1165.18,0.00019994,2]
[388501838,1759221041398,-794.9,0.00019994,2]
[388501839,1759221041408,-1422.3,0.00019994,2]
[388501840,1759221041417,-858.55,0.00019994,2]
[388501841,1759221041427,-5106.94,0.00019994,2]
[388501842,1759221041437,-1717.91,0.00019994,2]
[388501843,1759221041447,-7512.67,0.00019994,2]
[388501844,1759221041456,-2025.59,0.00019994,2]
[388501845,1759221041466,-11054.141626,0.00019994,2]
[388501846,1759221041475,-2025.59,0.00019994,2]
[388501847,1759221041485,-2025.59,0.00019994,2]
[388501848,1759221041495,-526.741572,0.00019994,2]
[388501849,1759221041505,-408.514422,0.00019994,2]
[388501850,1759221041515,-713.25,0.00019994,2]
[388501851,1759221041524,-500.0,0.00019994,2]
[388501852,1759221041535,-792.75,0.00019995,2]
[388501853,1759221041545,-500.0,0.00019995,2]
[388501854,1759221041555,-1644.37,0.00019995,2]
[388501855,1759221041564,-1830.54,0.00019995,2]
[388501856,1759221041574,-500.0,0.00019995,2]
[388501857,1759221041583,-500.0,0.00019995,2]
[388501858,1759221041593,-633.45,0.00019995,2]
[388501859,1759221041603,-734.97,0.00019995,2]
[388501860,1759221041613,-986.37,0.00019995,2]
[388501861,1759221041622,-927.0,0.00019995,2]
[388501862,1759221041632,-500.0,0.00019995,2]
[388501863,1759221041642,-500.0,0.00019995,2]
[388501864,1759221041651,-500.0,0.00019995,2]
[388501865,1759221041660,-500.0,0.00019995,2]
[388501866,1759221041670,-923.62,0.00019995,2]
[388501867,1759221041679,-1193.82,0.00019995,2]
[388501868,1759221041689,-1587.18,0.00019995,2]
[388501869,1759221041699,-727.94,0.00019995,2]
[388501870,1759221041709,-500.0,0.00019995,2]
[388501871,1759221041719,-500.0,0.00019995,2]
[388501872,1759221041728,-801.57,0.00019995,2]
[388501873,1759221041738,-500.0,0.00019995,2]
[388501874,1759221041748,-500.0,0.00019995,2]
[388501875,1759221041758,-1934.43,0.00019995,2]
[388501876,1759221041767,-500.0,0.00019995,2]
[388501877,1759221041777,-1090.96,0.00019995,2]
[388501878,1759221041789,-2585.25,0.00019995,2]
[388501879,1759221041799,-193.21802759,0.00019995,2]
[388501880,1759221041808,-500.0,0.00019995,2]
[388501881,1759221041818,-1313.37,0.00019995,2]
[388501882,1759221041827,-1934.51,0.00019995,2]
[388501883,1759221041836,-500.0,0.00019995,2]
[388501884,1759221041846,-500.0,0.00019995,2]
[388501885,1759221041856,-500.0,0.00019995,2]
[388501886,1759221041865,-500.0,0.00019995,2]
[388501887,1759221041876,-546.29,0.00019995,2]
[388501888,1759221041886,-500.0,0.00019995,2]
[388501889,1759221041895,-4385.36,0.00019995,2]
[388501890,1759221041905,-1506.79,0.00019995,2]
[388501891,1759221041915,-500.0,0.00019995,2]
[388501892,1759221041925,-1495.82,0.00019995,2]
[388501893,1759221041934,-500.0,0.00019995,2]
[388501894,1759221041944,-500.0,0.00019995,2]
[388501895,1759221041954,-500.0,0.00019995,2]
[388501896,1759221041963,-598.52,0.00019995,2]
[388501897,1759221041973,-500.0,0.00019995,2]
[388501898,1759221041982,-3732.78,0.00019995,2]
[388501899,1759221041992,-500.0,0.00019995,2]
[388501900,1759221042002,-2588.76,0.00019995,2]
[388501901,1759221042012,-907.71,0.00019995,2]
[388501902,1759221042021,-500.0,0.00019995,2]
[388501903,1759221042032,-500.0,0.00019995,2]
[388501904,1759221042042,-500.0,0.00019995,2]
[388501905,1759221042052,-500.0,0.00019995,2]
[388501906,1759221042062,-2634.49,0.00019995,2]
[388501907,1759221042072,-4821.11,0.00019995,2]
[388501908,1759221042082,-2515.87,0.00019995,2]
[388501909,1759221042095,-500.0,0.00019995,2]
[388501910,1759221042105,-400.25316657,0.00019995,2]
[388501911,1759221042115,-6038.2,0.00019995,2]
[388501913,1759221042125,-500.0,0.00019995,2]
[388501914,1759221042136,-803.1,0.00019995,2]
[388501915,1759221042146,-7458.39,0.00019995,2]
[388501916,1759221042156,-500.0,0.00019995,2]
[388501917,1759221042168,-587.52,0.00019995,2]
[388501918,1759221042180,-500.0,0.00019995,2]
[388501919,1759221042190,-3312.82,0.00019995,2]
[388501920,1759221042201,-500.0,0.00019995,2]
[388501921,1759221042211,-500.0,0.00019995,2]
[388501922,1759221042222,-500.0,0.00019995,2]
[388501923,1759221042232,-500.0,0.00019995,2]
[388501924,1759221042242,-500.0,0.00019995,2]
[388501925,1759221042251,-500.0,0.00019995,2]
[388501926,1759221042261,-4218.18,0.00019995,2]
[388501927,1759221042272,-500.0,0.00019995,2]
[388501928,1759221042282,-1658.79,0.00019995,2]
[388501929,1759221042292,-5338.24,0.00019995,2]
[388501930,1759221042301,-500.0,0.00019995,2]
[388501931,1759221042311,-500.0,0.00019995,2]
[388501932,1759221042321,-3329.43,0.00019995,2]
[388501933,1759221042331,-1818.57,0.00019995,2]
[388501934,1759221042340,-3028.13,0.00019995,2]
[388501935,1759221042350,-3538.05,0.00019995,2]
[388501936,1759221042359,-500.0,0.00019995,2]
[388501937,1759221042369,-4942.36,0.00019995,2]
[388501938,1759221042379,-500.0,0.00019995,2]
[388501939,1759221042388,-3078.02,0.00019995,2]
[388501940,1759221042397,-500.0,0.00019995,2]
[388501941,1759221042407,-500.0,0.00019995,2]
[388501942,1759221042417,-500.0,0.00019995,2]
[388501943,1759221042426,-500.0,0.00019995,2]
[388501944,1759221042436,-5412.39,0.00019995,2]
[388501945,1759221042446,-500.0,0.00019995,2]
[388501946,1759221042456,-500.0,0.00019995,2]
[388501947,1759221042465,-5402.72,0.00019995,2]
[388501948,1759221042475,-500.0,0.00019995,2]
[388501949,1759221042484,-1941.93,0.00019995,2]
[388501950,1759221042493,-500.0,0.00019995,2]
[388501951,1759221042502,-3273.8,0.00019995,2]
[388501952,1759221042511,-4954.23,0.00019995,2]
[388501953,1759221042521,-500.0,0.00019995,2]
[388501954,1759221042533,-500.0,0.00019995,2]
[388501955,1759221042542,-500.0,0.00019995,2]
[388501956,1759221042552,-500.0,0.00019995,2]
[388501957,1759221042562,-500.0,0.00019995,2]
[388501958,1759221042571,-2326.61,0.00019995,2]
[388501959,1759221042581,-2121.66,0.00019995,2]
[388501960,1759221042591,-500.0,0.00019995,2]
[388501961,1759221042601,-500.0,0.00019995,2]
[388501962,1759221042611,-500.0,0.00019995,2]
[388501963,1759221042621,-500.0,0.00019995,2]
[388501964,1759221042632,-3246.14,0.00019995,2]
[388501965,1759221042642,-2653.82,0.00019995,2]
[388501966,1759221042652,-500.0,0.00019995,2]
[388501967,1759221042662,-500.0,0.00019995,2]
[388501968,1759221042672,-500.0,0.00019995,2]
[388501969,1759221042682,-500.0,0.00019995,2]
[388501970,1759221042691,-4636.25,0.00019995,2]
[388501971,1759221042701,-500.0,0.00019995,2]
[388501972,1759221042712,-500.0,0.00019995,2]
[388501973,1759221042723,-500.0,0.00019995,2]
[388501974,1759221042732,-616.84088841,0.00019995,2]
[388501975,1759221042742,-2950.77,0.00019995,2]
[388501976,1759221042752,-500.0,0.00019995,2]
[388501977,1759221042762,-500.0,0.00019995,2]
[388501978,1759221042771,-500.0,0.00019995,2]
[388501979,1759221042782,-1907.25,0.00019995,2]
[388501980,1759221042792,-695.6,0.00019995,2]
[388501981,1759221042802,-500.0,0.00019995,2]
[388501982,1759221042815,-500.0,0.00019995,2]
[388501983,1759221042826,-500.0,0.00019995,2]
[388501984,1759221042836,-1773.69,0.00019995,2]
[388501985,1759221042846,-500.0,0.00019995,2]
[388501986,1759221042855,-500.0,0.00019995,2]